Workbook

Sheet 녹차
B3: 구분 | C3: 제조방법 | D3: 친환경인증 | E3: 제조일 | F3: 가격 | G3: 판매량 | H3: 판매금액
B4: 대작 | C4: 가루차 | D4: 유기농 | E4: 2021-07-30 | F4: 10000 | G4: 10 | H4: =F4*G4 -> 100000
B5: 대작 | C5: 가루차 | D5: 무농약 | E5: 2020-08-30 | F5: 30000 | G5: 34 | H5: =F5*G5 -> 1020000
B6: 대작 | C6: 잎차 | D6: 저농약 | E6: 2020-07-30 | F6: 10000 | G6: 40 | H6: =F6*G6 -> 400000
B7: 대작 | C7: 잎차 | D7: 무농약 | E7: 2020-05-30 | F7: 10000 | G7: 40 | H7: =F7*G7 -> 400000
B8: 대작 | C8: 가루차 | D8: 유기농 | E8: 2020-09-01 | F8: 36000 | G8: 53 | H8: =F8*G8 -> 1908000
B9: 대작 | C9: 가루차 | D9: 무농약 | E9: 2021-05-30 | F9: 15000 | G9: 53 | H9: =F9*G9 -> 795000
B10: 대작 | C10: 가루차 | D10: 무농약 | E10: 2021-06-30 | F10: 15000 | G10: 80 | H10: =F10*G10 -> 1200000
B11: 대작 | C11: 잎차 | D11: 유기농 | E11: 2021-08-30 | F11: 25000 | G11: 60 | H11: =F11*G11 -> 1500000
B12: 세작 | C12: 가루차 | D12: 무농약 | E12: 2021-05-30 | F12: 15000 | G12: 45 | H12: =F12*G12 -> 675000
B13: 세작 | C13: 잎차 | D13: 무농약 | E13: 2021-06-30 | F13: 44000 | G13: 60 | H13: =F13*G13 -> 2640000
B14: 세작 | C14: 가루차 | D14: 저농약 | E14: 2021-06-30 | F14: 15000 | G14: 20 | H14: =F14*G14 -> 300000
B15: 세작 | C15: 잎차 | D15: 저농약 | E15: 2021-08-30 | F15: 25000 | G15: 53 | H15: =F15*G15 -> 1325000
B16: 세작 | C16: 잎차 | D16: 무농약 | E16: 2020-08-25 | F16: 200000 | G16: 75 | H16: =F16*G16 -> 15000000
B17: 세작 | C17: 발효차 | D17: 무농약 | E17: 2020-09-30 | F17: 25000 | G17: 32 | H17: =F17*G17 -> 800000
B18: 세작 | C18: 발효차 | D18: 유기농 | E18: 2020-06-25 | F18: 40000 | G18: 5 | H18: =F18*G18 -> 200000
B19: 세작 | C19: 잎차 | D19: 무농약 | E19: 2021-05-25 | F19: 70000 | G19: 24 | H19: =F19*G19 -> 1680000
B20: 세작 | C20: 잎차 | D20: 유기농 | E20: 2021-06-30 | F20: 44000 | G20: 37 | H20: =F20*G20 -> 1628000
B21: 세작 | C21: 잎차 | D21: 무농약 | E21: 2020-07-30 | F21: 10000 | G21: 53 | H21: =F21*G21 -> 530000
B22: 세작 | C22: 잎차 | D22: 무농약 | E22: 2020-05-30 | F22: 10000 | G22: 5 | H22: =F22*G22 -> 50000
B23: 세작 | C23: 잎차 | D23: 유기농 | E23: 2021-06-30 | F23: 60000 | G23: 24 | H23: =F23*G23 -> 1440000
B24: 세작 | C24: 가루차 | D24: 무농약 | E24: 2021-07-25 | F24: 20000 | G24: 24 | H24: =F24*G24 -> 480000
B25: 우전 | C25: 잎차 | D25: 무농약 | E25: 2021-06-30 | F25: 60000 | G25: 80 | H25: =F25*G25 -> 4800000
B26: 우전 | C26: 발효차 | D26: 유기농 | E26: 2021-09-02 | F26: 70000 | G26: 60 | H26: =F26*G26 -> 4200000
B27: 우전 | C27: 가루차 | D27: 유기농 | E27: 2021-07-30 | F27: 10000 | G27: 66 | H27: =F27*G27 -> 660000
B28: 우전 | C28: 가루차 | D28: 무농약 | E28: 2021-06-30 | F28: 10000 | G28: 32 | H28: =F28*G28 -> 320000
B29: 중작 | C29: 잎차 | D29: 무농약 | E29: 2020-05-30 | F29: 34000 | G29: 43 | H29: =F29*G29 -> 1462000
B30: 중작 | C30: 가루차 | D30: 무농약 | E30: 2021-06-30 | F30: 10000 | G30: 37 | H30: =F30*G30 -> 370000
B31: 중작 | C31: 잎차 | D31: 무농약 | E31: 2021-07-25 | F31: 20000 | G31: 66 | H31: =F31*G31 -> 1320000
B32: 중작 | C32: 잎차 | D32: 무농약 | E32: 2020-05-30 | F32: 34000 | G32: 40 | H32: =F32*G32 -> 1360000
B33: 중작 | C33: 가루차 | D33: 무농약 | E33: 2020-08-30 | F33: 30000 | G33: 75 | H33: =F33*G33 -> 2250000
